bitfinex-derivatives/quotes_ETHF0:USTF0_20260125
["timestamp","ask_amount","ask_price","bid_price","bid_amount"]
[1769359776215,0.00419012,2896.2,2894.9,3.60404223]
[1769359776412,4.20735505,2896.1,2894.9,3.60404223]
[1769359776609,4.20735505,2896.0,2894.9,3.60404223]
[1769359776810,4.20735505,2895.9,2894.9,3.60404223]
[1769359777010,0.00419012,2896.2,2894.9,3.60404223]
[1769359777315,4.20698731,2896.1,2894.9,3.60404223]
[1769359777619,4.20698731,2896.0,2894.9,3.60404223]
[1769359777821,0.00419012,2896.2,2894.9,3.60404223]
[1769359778017,4.20756914,2896.1,2894.9,3.60404223]
[1769359778211,4.20756914,2896.0,2894.9,3.60404223]
[1769359778519,0.00419012,2896.2,2894.9,3.60404223]
[1769359778819,4.20677425,2896.1,2894.9,3.60404223]
[1769359779021,4.20677425,2896.0,2895.1,3.60404223]
[1769359779205,0.00419012,2896.2,2895.1,3.60816465]
[1769359779411,4.20554291,2896.1,2895.1,3.60816465]
[1769359779607,4.20554291,2896.0,2895.1,3.60816465]
[1769359779815,0.00419012,2896.2,2895.1,3.60816465]
[1769359780017,4.20691669,2896.1,2895.1,3.60816465]
[1769359780213,4.20691669,2896.0,2895.1,3.60816465]
[1769359780413,0.00419012,2896.2,2895.1,3.60816465]
[1769359780717,4.20851845,2896.1,2895.1,3.60816465]
[1769359780911,4.20851845,2896.0,2895.1,3.60816465]
[1769359781112,0.00419012,2896.2,2895.1,3.60816465]
[1769359781314,4.20856793,2896.1,2895.1,3.60816465]
[1769359781514,4.20856793,2896.0,2895.1,3.60816465]
[1769359781712,0.00419012,2896.2,2895.1,3.60816465]
[1769359781918,4.20923653,2896.1,2895.2,2.028]
[1769359782123,4.20923653,2896.0,2895.2,2.028]
[1769359782421,0.00419012,2896.2,2895.2,2.028]
[1769359783121,0.00419012,2896.2,2895.2,5.63204223]
[1769359783326,0.00419012,2896.2,2895.3,3.60404223]
[1769359787320,0.00419012,2896.2,2895.4,2.028]
[1769359787530,0.00419012,2896.2,2895.1,0.00412242]
[1769359787723,0.00419012,2896.2,2895.1,2.03212242]
[1769359789226,0.00419012,2896.2,2895.1,0.00412242]
[1769359789426,0.00419012,2896.2,2895.2,2.028]
[1769359792224,0.17708012,2896.2,2895.2,2.028]
[1769359793116,0.1729,2896.0,2895.1,0.00412242]
[1769359793322,4.1949889,2895.9,2894.7,2.028]
[1769359793617,4.3678989,2895.8,2894.7,2.028]
[1769359793928,0.17292,2895.6,2893.9,3.60404223]
[1769359794230,4.19207192,2895.5,2894.1,3.60404223]
[1769359794429,0.17292,2895.6,2894.1,3.60404223]
[1769359794729,4.19205474,2895.5,2894.1,3.60404223]
[1769359794929,0.17294,2895.3,2893.9,0.00357069]
[1769359795228,0.17294,2895.3,2894.0,2.028]
[1769359795921,0.17294,2895.3,2894.0,5.63204223]
[1769359796130,0.17294,2895.3,2894.1,3.60404223]
[1769359797122,3.70937915,2895.9,2894.1,3.60404223]
[1769359797328,4.19114356,2895.8,2894.1,3.60404223]
[1769359797521,3.70937915,2895.6,2893.9,0.00357069]
[1769359797731,3.88237915,2894.3,2891.9,0.17314]
[1769359798027,3.70937915,2894.0,2892.0,5.486]
[1769359798623,3.71301745,2894.0,2892.0,0.00364392]
[1769359798821,3.70937915,2893.8,2892.1,5.486]
[1769359799223,3.88240915,2893.8,2892.0,0.00364392]
[1769359799426,3.88240915,2893.8,2892.1,5.486]
[1769359800619,3.71301745,2894.0,2892.2,3.60404223]
[1769359800824,3.88603745,2894.0,2892.3,5.486]
[1769359802431,3.88603745,2894.0,2892.4,3.60404223]
[1769359802825,3.71301745,2894.0,2892.4,3.60404223]
[1769359803829,0.0036383,2894.0,2892.4,3.60404223]
[1769359806426,0.0036383,2894.0,2892.4,3.77715223]
[1769359808835,0.0036383,2894.0,2892.6,3.49796912]
[1769359809031,0.0036383,2894.0,2892.6,3.67106912]
[1769359810135,13.67145836,2894.9,2893.1,3.49796912]
[1769359810136,10.32,2894.9,2893.1,3.49796912]
[1769359810334,3.52439836,2895.3,2893.3,3.67101912]
[1769359810733,3.52439836,2895.3,2893.5,3.49796912]
[1769359810932,3.52439836,2895.3,2893.7,3.49796912]
[1769359811134,3.52725073,2895.3,2893.7,3.49796912]
[1769359811633,0.00285237,2895.3,2893.7,3.49796912]
[1769359814242,0.00285237,2895.3,2893.8,5.52696912]
[1769359814442,0.00285237,2895.3,2893.9,3.49796912]
[1769359815844,3.35145836,2896.1,2893.9,3.49796912]
[1769359816734,3.35145836,2896.1,2894.1,3.68171187]
[1769359816946,3.35572406,2896.1,2894.1,3.68469419]
[1769359817745,3.35572406,2896.1,2894.1,3.85770419]
[1769359818840,3.35572406,2896.1,2894.1,4.12956769]
[1769359819945,3.35572406,2896.1,2894.3,3.68171187]
[1769359820149,3.35572406,2896.1,2894.5,3.68171187]
[1769359821150,0.0042657,2896.1,2894.5,3.68171187]
[1769359823154,0.0042657,2896.1,2894.5,3.85470187]
[1769359824052,0.0042657,2896.1,2894.7,3.68171187]
[1769359825046,3.63145174,2896.1,2894.6,3.458]
[1769359825248,3.63145174,2896.1,2894.7,2.028]
[1769359826945,3.63145174,2896.1,2894.8,2.028]
[1769359827856,0.0042657,2896.1,2894.8,5.70971187]
[1769359828762,0.0042657,2896.1,2894.9,3.68171187]
[1769359832859,0.0042657,2896.1,2894.9,3.85467187]
[1769359833453,3.62718604,2896.9,2894.9,3.85467187]
[1769359834156,3.62718604,2896.9,2894.8,2.028]
[1769359834157,3.62718604,2896.9,2895.1,3.67841675]
[1769359834555,3.63039397,2896.9,2895.1,3.67841675]
[1769359837058,3.62612535,2896.6,2895.2,5.485]
[1769359837264,3.62612535,2896.6,2894.9,3.67841675]
[1769359837450,3.62612535,2896.6,2895.0,9.16341675]
[1769359837859,3.62612535,2896.6,2895.1,3.67841675]
[1769359839162,3.62612535,2896.6,2895.2,5.485]
[1769359839963,3.62612535,2896.6,2895.2,3.67841675]
[1769359840263,3.62612535,2896.6,2895.3,5.485]
[1769359841455,0.00320793,2896.9,2895.3,5.485]
[1769359841655,3.62933328,2896.9,2895.3,5.485]
[1769359844157,3.62612535,2896.8,2895.4,5.485]
[1769359845066,3.79897535,2896.8,2895.4,5.485]
[1769359846162,3.62612535,2896.8,2895.4,5.485]
[1769359846872,3.62612535,2896.8,2895.2,3.67841675]
[1769359847071,3.62612535,2896.8,2895.3,5.484]
[1769359847870,3.62612535,2896.8,2895.3,9.16241675]
[1769359848072,0.00320793,2896.9,2895.4,3.67841675]
[1769359848976,0.00320793,2896.9,2895.4,3.85134675]
[1769359849878,0.00320793,2896.9,2895.5,5.484]
[1769359850272,0.00320793,2896.9,2895.4,3.85134675]
[1769359850478,0.00320793,2896.9,2895.5,5.484]
[1769359851983,0.00320793,2896.9,2895.4,3.85134675]
[1769359852181,3.62612535,2898.1,2896.3,3.67841675]
[1769359852378,3.62612535,2897.9,2896.4,5.484]
[1769359852585,3.62612535,2897.9,2896.5,5.484]
[1769359853084,3.62964678,2897.9,2896.5,5.48791471]
[1769359854977,3.62964678,2897.9,2896.5,9.16633146]
[1769359855288,0.00352143,2897.9,2896.5,9.16633146]
[1769359857686,0.00352143,2897.9,2896.6,3.67841675]
[1769359859482,0.00352143,2897.9,2896.7,5.483]
[1769359859890,0.00352143,2897.9,2896.6,3.67841675]
[1769359860184,0.00352143,2897.9,2896.8,5.483]
[1769359860391,0.00352143,2897.9,2896.9,5.483]
[1769359861090,3.62964678,2897.9,2897.0,5.483]
[1769359861291,3.62964678,2897.9,2897.1,2.027]
[1769359862178,3.62612535,2899.3,2897.2,3.85123675]
[1769359862384,3.79883535,2899.1,2897.3,5.483]
[1769359863089,3.80297137,2899.1,2897.3,5.483]
[1769359863388,3.71464958,2898.9,2897.4,5.483]
[1769359864787,3.88737958,2898.9,2897.2,3.67841675]
[1769359864993,3.88737958,2898.9,2897.3,5.483]
[1769359866287,3.88737958,2898.9,2896.9,3.75658634]
[1769359866486,3.88737958,2898.9,2897.0,9.23858634]
[1769359866683,3.88737958,2898.9,2897.1,3.75658634]
[1769359867387,0.00413602,2899.1,2897.1,3.75658634]
[1769359867687,1.20680134,2899.5,2897.9,3.92936634]
[1769359867893,1.20680134,2899.5,2898.1,3.75658634]
[1769359868093,1.20680134,2899.5,2898.2,9.23758634]
[1769359868491,1.20680134,2899.5,2898.2,3.75658634]
[1769359868698,1.2094847,2899.5,2898.3,5.481]
[1769359868896,1.2094847,2899.5,2898.4,3.75658634]
[1769359869089,0.27025743,2900.6,2898.4,3.75658634]
[1769359869090,3.98490701,2900.6,2898.4,3.75658634]
[1769359869392,3.98490701,2900.6,2898.6,3.75658634]
[1769359869595,3.71464958,2900.6,2898.6,3.75658634]
[1769359870189,3.71741908,2900.6,2898.6,3.76095076]
[1769359870390,3.71741908,2900.6,2898.6,0.00436442]
[1769359870591,3.71741908,2900.6,2898.7,5.481]
[1769359870784,3.71464958,2900.2,2898.6,0.00436442]
[1769359870987,3.71464958,2900.0,2898.6,0.00436442]
[1769359871292,3.71464958,2900.0,2898.7,2.026]
[1769359871989,3.71464958,2900.0,2898.6,0.00436442]
[1769359872190,3.71464958,2900.0,2898.7,2.026]
[1769359872499,3.88730958,2900.0,2898.7,2.026]
[1769359872684,3.88730958,2900.0,2898.8,2.026]
[1769359873396,3.71464958,2900.0,2898.8,2.026]
[1769359874299,3.71741908,2900.6,2898.9,5.48]
[1769359875392,3.71741908,2900.6,2898.7,3.92932634]
[1769359875597,3.71741908,2900.6,2898.8,3.454]
[1769359875894,3.19946222,2900.4,2898.8,5.48]
[1769359876092,3.37210222,2900.4,2898.8,3.454]
[1769359876292,3.19946222,2900.2,2898.9,2.026]
[1769359876699,3.19946222,2900.2,2898.7,3.454]
[1769359876992,3.37211222,2900.2,2898.8,2.026]
[1769359877188,3.19946222,2900.0,2898.8,2.026]
[1769359877594,3.19946222,2900.0,2898.6,0.00436442]
[1769359877787,3.19946222,2899.8,2898.7,2.026]
[1769359878497,3.19946222,2899.8,2898.6,0.00436442]
[1769359878797,7.55418285,2899.7,2898.7,2.026]
[1769359878996,3.19946222,2899.7,2898.7,2.026]
[1769359879689,4.35644599,2899.6,2898.7,2.026]
[1769359879888,0.17266,2900.0,2898.7,2.026]
[1769359880399,0.17266,2900.0,2898.8,5.479]
[1769359880400,3.19946222,2899.8,2898.8,5.479]
[1769359880698,3.19946222,2899.6,2898.6,0.00436442]
[1769359880888,3.19946222,2899.4,2898.6,0.00436442]
[1769359881085,4.3599065,2899.3,2898.6,0.00436442]
[1769359881293,3.37216222,2899.4,2897.6,3.26631328]
[1769359881498,3.37216222,2899.4,2895.2,11.942008]
[1769359881499,3.19946222,2899.2,2897.7,5.479]
[1769359881694,7.55896731,2899.1,2897.7,5.479]
[1769359881895,4.35950509,2899.0,2897.7,5.479]
[1769359882090,4.3612217,2898.9,2897.7,5.479]
[1769359882289,3.19946222,2899.1,2897.7,5.4814984]
[1769359883000,3.19946222,2899.8,2897.7,0.0024984]
[1769359883200,3.19946222,2899.6,2897.8,5.479]
[1769359883401,3.19946222,2899.4,2897.7,0.0024984]
[1769359883600,3.19946222,2899.4,2897.8,5.479]
[1769359883793,3.19946222,2899.4,2897.7,0.0024984]
[1769359883995,3.19946222,2899.2,2897.8,2.025]
[1769359885194,3.19946222,2899.2,2897.7,0.0024984]
[1769359885398,3.19946222,2899.0,2897.7,2.0274984]
[1769359886200,3.19946222,2899.0,2897.7,0.0024984]
[1769359886502,3.19946222,2898.8,2897.7,0.0024984]
[1769359886696,3.19946222,2898.6,2897.1,0.17283]
[1769359886897,3.19946222,2898.6,2897.3,2.025]
[1769359887794,3.19946222,2898.6,2897.3,2.02766859]
[1769359888404,3.19946222,2898.6,2897.3,2.02866859]
[1769359888901,3.19946222,2898.6,2897.3,0.00266859]
[1769359889109,3.19946222,2898.4,2896.4,3.26631328]
[1769359889399,3.19946222,2898.2,2896.4,3.26631328]
[1769359889605,3.19946222,2898.2,2896.5,5.48]
[1769359890011,3.19946222,2898.2,2896.4,3.26631328]
[1769359890196,3.2038985,2898.2,2896.5,5.48]
[1769359890999,3.2038985,2898.2,2896.4,3.27076653]
[1769359891497,3.2038985,2898.2,2896.5,5.48]
[1769359891698,3.2038985,2898.2,2896.4,3.27076653]
[1769359891901,3.2038985,2898.2,2896.4,3.45845325]
[1769359891902,3.19946222,2898.0,2896.4,3.45845325]
[1769359892106,3.19946222,2898.0,2896.5,2.026]
[1769359894907,3.19946222,2898.0,2896.6,2.026]
[1769359895507,0.00443628,2898.2,2896.6,4.56881931]
[1769359895815,0.00443628,2898.2,2896.7,5.48]
[1769359896006,0.00443628,2898.2,2896.7,8.02281931]
[1769359896912,0.00443628,2898.2,2896.8,2.54281931]
[1769359898608,0.00443628,2898.2,2896.9,5.481]
[1769359899313,0.00443628,2898.2,2896.9,8.02381931]
[1769359900409,0.00443628,2898.2,2897.0,2.51410191]
[1769359900613,0.17274,2898.7,2897.0,2.51410191]
[1769359901707,0.17544804,2898.7,2897.0,2.51410191]
[1769359903219,2.74846698,2898.7,2897.0,2.51410191]
[1769359903421,2.74846698,2898.7,2897.1,5.481]
[1769359904906,2.74846698,2898.7,2897.1,7.76547774]
[1769359905308,2.57572698,2898.7,2897.2,2.22997401]
[1769359905507,0.00270804,2898.7,2897.3,5.481]
[1769359906719,0.00270804,2898.7,2897.2,2.40279401]
[1769359907017,2.57572698,2898.7,2897.3,2.026]
[1769359907408,2.57572698,2898.7,2897.4,2.026]
[1769359907619,2.57572698,2898.7,2897.5,2.026]
[1769359907820,2.57301894,2897.1,2895.0,2.12344482]
[1769359908322,2.57301894,2897.1,2895.1,5.481]
[1769359908620,2.57301894,2897.1,2895.2,5.481]
[1769359908814,2.74585894,2897.1,2895.3,5.481]
[1769359909123,2.74585894,2897.1,2895.3,7.55152909]
[1769359910520,2.57301894,2896.9,2895.4,5.481]
[1769359915123,0.1728,2897.6,2895.5,1.76904098]
[1769359915721,2.57301894,2897.9,2895.7,1.89337938]
[1769359917232,2.57301894,2897.9,2895.8,7.1086362]
[1769359918128,2.57301894,2897.7,2895.9,5.483]
[1769359920426,2.57301894,2897.7,2896.0,5.483]
[1769359921624,2.57301894,2897.7,2895.8,1.6256362]
[1769359921823,2.57301894,2897.7,2895.9,5.483]
[1769359923133,2.57301894,2897.7,2895.8,1.6256362]
[1769359923434,1.82778073,2897.5,2895.9,5.483]
[1769359924837,1.82778073,2897.5,2895.7,0.17292]
[1769359925038,1.82778073,2897.5,2896.0,2.027]
[1769359926136,1.82778073,2897.5,2895.4,1.31628517]
[1769359926329,1.82778073,2896.9,2895.5,3.456]
[1769359926534,1.82778073,2896.9,2895.6,2.027]
[1769359927430,1.82778073,2897.4,2895.7,1.1163598]
[1769359927631,12.14778073,2897.8,2895.7,1.1163598]
[1769359927831,1.82778073,2897.8,2895.7,1.1163598]
[1769359928445,1.82778073,2897.4,2895.2,1.06421302]
[1769359928737,1.82778073,2897.4,2895.8,5.483]
[1769359928942,1.82778073,2897.4,2895.8,3.456]
[1769359929441,1.82778073,2898.0,2895.9,1.02023082]
[1769359929638,5.98125715,2897.9,2895.9,1.02023082]
[1769359929831,1.82778073,2897.9,2895.9,1.02023082]
[1769359932740,1.82778073,2897.5,2895.2,0.17644299]
[1769359932930,1.82778073,2897.5,2895.3,5.483]
[1769359934538,1.82778073,2897.2,2895.3,5.483]
[1769359936138,1.82778073,2897.2,2895.4,0.91456671]
[1769359936335,1.82778073,2897.2,2895.5,0.88045227]
[1769359936745,1.65862721,2897.8,2895.5,0.88045227]
[1769359936938,1.65862721,2897.6,2895.5,0.88045227]
[1769359937242,1.65862721,2897.6,2895.7,0.70752227]
[1769359938148,1.65862721,2897.6,2895.9,0.67109438]
[1769359938845,1.83140721,2897.9,2896.0,0.6257482]
[1769359940449,1.83140721,2897.9,2896.0,0.7986382]
[1769359940648,1.83140721,2897.9,2896.1,5.483]
[1769359944244,1.65862721,2897.9,2896.3,0.44390676]
[1769359946148,1.65862721,2897.9,2896.2,0.17288]
[1769359946550,1.65862721,2897.9,2896.3,0.17288]
[1769359949051,1.83141721,2897.9,2896.4,3.456]
[1769359949244,1.83141721,2897.9,2896.5,2.027]
[1769359951651,1.83142721,2897.7,2895.8,0.17291]
[1769359951853,1.83142721,2897.7,2895.9,3.456]
[1769359952154,1.83142721,2897.7,2895.9,5.483]
[1769359952453,1.65862721,2897.7,2896.0,3.456]
[1769359952754,1.65862721,2897.5,2896.1,2.027]
[1769359952952,1.65862721,2897.3,2896.1,2.027]
[1769359953148,1.65862721,2897.3,2895.3,0.17294]
[1769359953356,1.65862721,2897.3,2896.0,3.456]
[1769359953655,1.83144721,2897.3,2896.1,2.027]
[1769359953854,1.83144721,2897.3,2896.2,2.027]
[1769359954347,1.83144721,2897.3,2895.3,0.17294]
[1769359954545,1.83144721,2897.3,2895.4,5.483]
[1769359955850,1.16666447,2897.8,2894.8,1.16666447]
[1769359955851,1.3464928,2896.9,2895.5,3.456]
[1769359956052,1.3464928,2896.9,2895.6,2.027]
[1769359959354,1.3464928,2896.9,2894.9,0.17296]
[1769359959556,1.3464928,2896.9,2895.3,5.483]
[1769359959852,1.3464928,2896.9,2895.4,5.483]
[1769359964053,1.3464928,2896.9,2895.5,2.027]
[1769359964352,1.3464928,2896.9,2895.5,5.483]
[1769359966048,1.3464928,2896.9,2895.2,0.17644299]
[1769359966249,1.3464928,2896.9,2895.3,5.483]
[1769359966654,1.3464928,2896.9,2895.4,5.483]
[1769359968161,0.1728,2897.7,2895.4,5.65593]
[1769359968366,1.3464928,2897.5,2895.4,5.65593]
[1769359971463,1.5193028,2897.5,2895.4,0.17293]
[1769359971652,1.5193028,2897.5,2895.5,5.483]
[1769359972459,1.5193028,2897.5,2895.5,5.65592]
[1769359975962,1.3464928,2897.5,2895.7,0.17291]
[1769359976267,1.3464928,2897.5,2895.8,1.16666447]
[1769359976467,1.3464928,2897.5,2895.9,5.483]
[1769359979960,1.3464928,2897.5,2896.0,0.17289]
[1769359980159,1.3464928,2897.5,2896.1,0.17289]
[1769359980360,1.3464928,2897.5,2896.2,5.483]
[1769359981066,1.3464928,2897.5,2896.3,5.483]
[1769359981567,1.3464928,2897.5,2896.4,5.483]
[1769359981768,1.3464928,2897.5,2896.2,0.81048681]
[1769359982068,1.3464928,2897.5,2896.5,2.027]
[1769359982464,1.3464928,2897.5,2896.7,0.81048681]
[1769359982665,1.37079252,2897.9,2897.1,0.81048681]
[1769359983567,1.37079252,2897.9,2896.5,2.027]
[1769359984160,1.37079252,2897.9,2896.2,1.16630635]
[1769359984366,1.37079252,2897.9,2896.5,0.17287]
[1769359986266,1.37079252,2897.9,2896.6,5.483]
[1769359986468,1.37079252,2897.9,2896.5,0.17287]
[1769359986668,1.37079252,2897.9,2896.0,0.1729]
[1769359986871,1.37079252,2897.9,2896.1,5.483]
[1769359990073,1.37079252,2897.9,2896.0,0.1729]
[1769359990272,1.37079252,2897.9,2896.1,5.483]
[1769359990468,1.37345817,2897.7,2895.4,0.17293]
[1769359990674,1.37345817,2897.7,2896.1,3.456]
[1769359990876,1.37345817,2897.5,2895.4,0.17293]
[1769359991072,1.37345817,2897.5,2895.7,3.456]
[1769359992475,1.37345817,2897.5,2895.7,4.62230635]
[1769359993277,1.37345817,2897.5,2895.7,4.79522635]
[1769359993580,1.37345817,2897.5,2895.8,0.17291]
[1769359994170,1.37345817,2897.5,2895.7,4.62230635]
[1769359994772,1.37345817,2897.5,2896.1,0.17289]
[1769359995074,1.37345817,2897.5,2896.2,1.33919635]
[1769359995278,1.37345817,2897.5,2896.3,5.483]
[1769359995876,1.37345817,2897.5,2896.2,1.33919635]
[1769359996077,1.37345817,2897.5,2896.4,5.483]
[1769359999084,1.37345817,2897.5,2896.2,1.33919635]
[1769359999290,1.37345817,2897.5,2896.3,5.483]
[1769360000186,1.37345817,2897.5,2896.2,0.17289]
[1769360000486,1.37345817,2897.5,2896.4,5.483]
[1769360001685,1.37345817,2897.5,2896.2,0.17289]
[1769360001892,1.37345817,2897.5,2896.3,5.483]
[1769360003595,1.37844087,2897.1,2895.4,3.455]
[1769360003797,1.37844087,2897.1,2895.0,9.10116056]
[1769360004093,1.37844087,2897.1,2895.3,5.482]
[1769360005999,1.37844087,2897.1,2895.4,5.483]
[1769360007499,1.37844087,2897.1,2895.4,5.65593]
[1769360009198,1.37844087,2897.1,2895.4,0.17293]
[1769360009393,1.37844087,2897.1,2895.5,5.483]
[1769360009793,1.37844087,2897.1,2895.4,0.17293]
[1769360009988,1.37844087,2897.1,2895.5,5.483]
[1769360012403,1.37844087,2897.1,2895.2,3.45950299]
[1769360012601,1.37844087,2897.1,2895.5,2.027]
[1769360012900,1.37841867,2896.9,2895.2,0.00350299]
[1769360013097,1.37841867,2896.9,2895.2,2.03050299]
[1769360014498,1.37911321,2896.8,2895.2,2.03050299]
[1769360014697,1.37911321,2896.8,2895.2,0.00350299]
[1769360015798,1.55196321,2896.8,2895.2,0.00350299]
[1769360020105,1.37911321,2896.8,2895.2,0.00350299]
[1769360022014,1.37911321,2896.8,2895.3,5.484]
[1769360022806,1.37911321,2896.8,2895.2,0.17644299]
[1769360023008,1.37911321,2896.8,2895.2,0.00350299]
[1769360023209,1.37911321,2896.8,2895.2,2.03050299]
[1769360023804,1.37911321,2896.8,2895.2,0.00350299]
[1769360024000,1.37911321,2896.8,2895.2,2.03050299]
[1769360025911,1.37911321,2896.8,2895.3,2.027]
[1769360031322,1.37911321,2896.8,2895.2,0.00350299]
[1769360031521,1.37911321,2896.8,2895.3,2.027]
[1769360032022,1.37911321,2896.8,2895.2,2.03050299]
[1769360033215,1.37911321,2896.8,2895.2,0.00350299]
[1769360033421,1.37911321,2896.8,2895.2,2.03050299]
[1769360034124,1.37911321,2896.8,2895.2,0.00350299]
[1769360036523,5.04585771,2897.9,2895.2,0.00350299]
[1769360036724,0.17277,2898.2,2895.8,0.17291]
[1769360036916,4.13663198,2898.1,2895.8,0.17291]
[1769360037122,4.13663198,2898.0,2895.9,5.484]
[1769360037319,0.17277,2898.2,2895.8,0.17291]
[1769360037527,4.13348275,2898.1,2895.9,5.484]
[1769360037729,0.17277,2898.2,2895.9,5.484]
[1769360037730,4.13348275,2898.0,2895.9,5.484]
[1769360037921,4.13348275,2897.9,2895.8,0.17291]
[1769360038122,4.13731028,2897.8,2896.0,2.027]
[1769360038429,4.13731028,2897.7,2896.0,2.027]
[1769360038732,1.36590918,2897.8,2895.9,2.027]
[1769360039030,1.36590918,2897.6,2895.9,2.027]
[1769360043829,1.36590918,2897.6,2896.3,0.17288]
[1769360045332,1.36590918,2897.6,2896.4,5.483]
[1769360046735,1.36590918,2897.6,2895.7,0.17291]
[1769360046926,1.36590918,2897.6,2896.2,3.456]
[1769360047433,1.36590918,2897.6,2895.7,0.17291]
[1769360047629,1.36590918,2897.6,2895.8,6.29338647]
[1769360048734,1.36590918,2897.6,2895.8,6.46629647]
[1769360048935,1.36590918,2897.6,2895.9,0.1729]
[1769360049530,1.36590918,2897.6,2896.0,5.483]
[1769360052736,1.36590918,2897.6,2895.9,0.1729]
[1769360052936,1.36590918,2897.6,2896.0,5.483]
[1769360054932,1.36590918,2897.6,2895.9,0.1729]
[1769360054933,1.36590918,2897.6,2896.1,5.483]
[1769360058241,1.36590918,2897.6,2895.9,0.1729]
[1769360058432,1.36590918,2897.6,2896.0,2.027]
[1769360060539,1.36590918,2897.6,2895.5,0.17293]
[1769360060740,1.36590918,2897.6,2895.7,3.456]
[1769360066636,1.35797612,2897.4,2895.8,2.027]
[1769360066840,1.35797612,2897.4,2895.8,5.483]
[1769360071544,1.3597755,2897.2,2896.0,0.81053165]
[1769360073344,1.3597755,2897.2,2896.2,0.81053165]
[1769360074946,1.3597755,2897.2,2896.0,0.81053165]
[1769360075340,1.3597755,2897.2,2895.8,0.81053165]
[1769360075542,1.3597755,2897.2,2895.8,2.83753165]
[1769360076144,1.3597755,2897.2,2896.0,0.81053165]
[1769360079850,1.3597755,2897.2,2896.2,0.81053165]
[1769360086946,0.81053165,2898.2,2896.7,0.81053165]
[1769360087153,0.81053165,2898.2,2896.7,2.83753165]
[1769360087343,0.81053165,2898.2,2896.7,0.81053165]
[1769360087543,0.81053165,2897.9,2896.5,2.83753165]
[1769360088852,0.67957718,2898.0,2896.9,0.81053165]
[1769360089050,0.00270804,2898.7,2897.3,0.81053165]
[1769360089254,0.67957718,2898.5,2897.3,0.81053165]
[1769360089454,0.67957718,2898.5,2897.3,0.81461004]
[1769360090552,0.67957718,2898.5,2897.5,0.81053165]
[1769360091148,0.67957718,2898.5,2897.7,0.81053165]
[1769360091343,0.67957718,2898.5,2897.5,2.027]
[1769360091954,0.67957718,2898.5,2897.5,2.83753165]
[1769360094755,0.67957718,2898.5,2897.5,0.81053165]
[1769360095754,0.68036501,2899.3,2898.4,0.81053165]
[1769360095958,0.68036501,2899.3,2898.2,0.81053165]
[1769360096767,0.68364872,2899.3,2898.2,0.81053165]
[1769360097660,0.68061404,2899.2,2898.0,2.83653165]
[1769360098062,0.68061404,2899.2,2898.0,0.81053165]
[1769360098263,0.68061404,2899.2,2898.0,2.83653165]
[1769360099662,0.68061404,2899.2,2898.2,0.81053165]
[1769360100759,0.68218615,2899.0,2897.8,0.81053165]
[1769360100959,0.81053165,2898.5,2897.3,0.00407839]
[1769360101165,0.68218615,2898.4,2897.3,0.00407839]
[1769360101359,0.68218615,2898.2,2897.3,0.00407839]
[1769360102056,0.68234795,2898.0,2896.9,0.81053165]
[1769360102468,0.81053165,2898.1,2896.7,0.81053165]
[1769360102469,0.68327146,2897.8,2896.7,0.81053165]
[1769360102666,0.68327146,2897.8,2896.9,0.81053165]
[1769360103164,0.68327146,2897.8,2896.9,0.81431712]
[1769360103671,0.68327146,2897.8,2896.9,0.00378547]
[1769360103866,0.68456393,2898.4,2896.9,0.00378547]
[1769360105165,0.68456393,2898.4,2896.9,2.02978547]
[1769360105365,0.68456393,2898.4,2897.0,1.16653533]
[1769360105866,0.68456393,2898.4,2897.0,1.33937533]
[1769360108162,0.68456393,2898.4,2897.1,2.026]
[1769360108362,0.68456393,2898.4,2897.2,2.026]
[1769360108969,0.68456393,2898.4,2897.0,3.62784]
[1769360108970,0.68456393,2898.4,2896.9,0.00378547]
[1769360112275,0.68456393,2898.4,2897.0,2.026]
[1769360114475,0.68456393,2898.4,2896.9,0.00378547]
[1769360114774,0.68456393,2898.4,2897.0,2.026]
[1769360116280,0.68456393,2898.4,2897.0,3.19253533]
[1769360116976,0.68456393,2898.4,2897.1,0.17283]
[1769360118380,0.68118296,2899.2,2897.1,0.17283]
[1769360118579,0.68118296,2899.0,2897.2,0.17282]
[1769360119371,0.68118296,2899.0,2897.3,0.17282]
[1769360120479,0.68118296,2899.0,2897.4,0.17281]
[1769360120680,0.68118296,2899.0,2897.6,0.1728]
[1769360124780,0.68118296,2899.0,2897.8,0.17279]
[1769360125982,0.00328371,2899.3,2898.1,0.17277]
[1769360126282,0.68470606,2900.5,2898.2,5.48]
[1769360126470,0.68383787,2900.3,2898.3,5.48]
[1769360127282,0.6870172,2900.3,2898.3,5.48]
[1769360127476,0.6870172,2900.3,2898.3,5.65276]
[1769360128274,0.6870172,2900.3,2898.3,5.48]
[1769360129579,0.6870172,2900.3,2898.5,0.17274]
[1769360130385,0.6870172,2900.3,2898.6,5.479]
[1769360130780,0.6870172,2900.3,2898.4,3.454]
[1769360130981,0.6870172,2900.3,2898.5,2.025]
[1769360131187,0.6870172,2900.3,2897.9,0.17278]
[1769360131390,0.6870172,2900.3,2898.4,2.025]
[1769360131688,0.68341472,2900.0,2898.2,2.025]
[1769360133590,0.68341472,2900.0,2898.2,2.19776]
[1769360134182,0.68341472,2900.0,2898.3,0.17276]
[1769360138195,0.68341472,2900.0,2898.4,5.478]
[1769360138591,0.68341472,2900.0,2898.3,0.17276]
[1769360138592,0.68341472,2900.0,2898.1,3.453]
[1769360138902,0.68433409,2899.8,2898.1,2.025]
[1769360139104,0.68433409,2899.8,2898.2,2.025]
[1769360140193,0.68433409,2899.8,2897.9,0.17278]
[1769360140394,0.68433409,2899.8,2898.0,5.478]
[1769360141704,0.68433409,2899.8,2898.1,0.17277]
[1769360142206,0.68433409,2899.8,2898.2,0.17276]
[1769360142397,0.68433409,2899.8,2898.6,0.17274]
[1769360143099,0.68433409,2899.8,2898.7,0.17274]
[1769360143798,0.68433409,2899.8,2898.7,0.45478922]
[1769360143998,0.68433409,2899.8,2898.7,0.17274]
[1769360144806,0.68433409,2899.8,2898.1,0.17277]
[1769360145002,0.68433409,2899.8,2898.2,5.65077]
[1769360145702,0.68433409,2899.8,2898.3,0.17276]
[1769360145897,0.68433409,2899.8,2898.5,0.17274]
[1769360146806,0.68433409,2899.8,2898.6,5.478]
[1769360147207,0.68433409,2899.8,2898.5,0.17274]
[1769360147505,0.68433409,2899.8,2898.7,2.025]
[1769360147899,0.68433409,2899.8,2898.8,0.80895426]